[Event "Titled Tuesday Blitz March 01 Early 2022"]
[White "Madaminov, Mukhiddin"]
[Black "Shubenkova, Veronika"]
[WhiteFideId "14210703"]
[BlackFideId "44124040"]
[WhiteElo "1916"]
[BlackElo "1938"]
[Result "1-0"]
[Round "03"]
[TimeControl "180+1"]
[Date "2022.03.01"]
[WhiteClock "0:00:59"]
[BlackClock "0:00:17"]

1. d4 {[%clk 0:03:00]}  d5 {[%clk 0:02:58]} 2. Nc3 {[%clk 0:03:00]}  e6 {[%clk 0:02:56]} 3. Bf4 {[%clk 0:02:59]}  Nf6 {[%clk 0:02:54]} 4. Nb5 {[%clk 0:02:59]}  Na6 {[%clk 0:02:54]} 5. e3 {[%clk 0:02:59]}  c6 {[%clk 0:02:54]} 6. Nc3 {[%clk 0:02:59]}  Nc7 {[%clk 0:02:54]} 7. Nf3 {[%clk 0:02:55]}  Bd6 {[%clk 0:02:53]} 8. Ne5 {[%clk 0:02:54]}  O-O {[%clk 0:02:53]} 9. Bd3 {[%clk 0:02:54]}  Qe7 {[%clk 0:02:38]} 10. Bg5 {[%clk 0:02:54]}  Nce8 {[%clk 0:02:30]} 11. Ng4 {[%clk 0:02:41]}  h6 {[%clk 0:02:15]} 12. Bh4 {[%clk 0:02:40]}  Qd8 {[%clk 0:02:14]} 13. Qf3 {[%clk 0:02:31]}  Be7 {[%clk 0:02:11]} 14. Ne5 {[%clk 0:02:32]}  Nd7 {[%clk 0:02:08]} 15. Bxe7 {[%clk 0:02:31]}  Qxe7 {[%clk 0:02:07]} 16. Nxd7 {[%clk 0:02:25]}  Bxd7 {[%clk 0:02:07]} 17. O-O-O {[%clk 0:02:26]}  f5 {[%clk 0:02:05]} 18. Ne2 {[%clk 0:02:22]}  Nd6 {[%clk 0:02:05]} 19. Qf4 {[%clk 0:02:22]}  Ne4 {[%clk 0:02:04]} 20. h4 {[%clk 0:02:16]}  Be8 {[%clk 0:01:59]} 21. Rdf1 {[%clk 0:02:14]}  Bh5 {[%clk 0:01:52]} 22. f3 {[%clk 0:02:14]}  Nd6 {[%clk 0:01:49]} 23. Qe5 {[%clk 0:02:13]}  Nf7 {[%clk 0:01:48]} 24. Qh2 {[%clk 0:02:12]}  Nd6 {[%clk 0:01:44]} 25. Rfg1 {[%clk 0:01:47]}  b5 {[%clk 0:01:34]} 26. g4 {[%clk 0:01:44]}  fxg4 {[%clk 0:01:33]} 27. fxg4 {[%clk 0:01:45]}  Be8 {[%clk 0:01:30]} 28. g5 {[%clk 0:01:44]}  h5 {[%clk 0:01:29]} 29. Qe5 {[%clk 0:01:42]}  g6 {[%clk 0:01:28]} 30. Nf4 {[%clk 0:01:39]}  Rxf4 {[%clk 0:01:26]} 31. exf4 {[%clk 0:01:36]}  Bf7 {[%clk 0:01:17]} 32. Re1 {[%clk 0:01:23]}  Qd7 {[%clk 0:01:13]} 33. Qf6 {[%clk 0:01:16]}  Kh7 {[%clk 0:00:45]} 34. Bxg6+ {[%clk 0:01:06]}  Bxg6 {[%clk 0:00:44]} 35. Rxe6 {[%clk 0:01:07]}  Qg7 {[%clk 0:00:31]} 36. Rxd6 {[%clk 0:01:02]}  Re8 {[%clk 0:00:30]} 37. Kd2 {[%clk 0:01:01]}  Be4 {[%clk 0:00:24]} 38. Re1 {[%clk 0:00:58]}  Qc7 {[%clk 0:00:20]} 39. Qh6+ {[%clk 0:00:57]}  Kg8 {[%clk 0:00:20]} 40. Rg6+ {[%clk 0:00:58]}  Bxg6 {[%clk 0:00:17]} 41. Qxg6+ {[%clk 0:00:58]}  Qg7 {[%clk 0:00:17]} 42. Rxe8# {[%clk 0:00:59]} 1-0


[Site "https://www.chess.com"]

[Event "Titled Tuesday Blitz March 01 Early 2022"]
[White "Makhnev, Denis"]
[Black "Gormally, Daniel W"]
[WhiteFideId "13707647"]
[BlackFideId "406465"]
[WhiteElo "2491"]
[BlackElo "2543"]
[Result "1-0"]
[Round "03"]
[TimeControl "180+1"]
[Date "2022.03.01"]
[WhiteClock "0:00:08"]
[BlackClock "0:00:18"]

1. d4 {[%clk 0:03:00]}  g6 {[%clk 0:02:58]} 2. e4 {[%clk 0:02:59]}  Nf6 {[%clk 0:02:58]} 3. e5 {[%clk 0:02:57]}  Nh5 {[%clk 0:02:58]} 4. Bc4 {[%clk 0:02:52]}  d6 {[%clk 0:02:51]} 5. Qf3 {[%clk 0:02:50]}  e6 {[%clk 0:02:36]} 6. exd6 {[%clk 0:02:25]}  cxd6 {[%clk 0:02:27]} 7. Bb5+ {[%clk 0:02:23]}  Nd7 {[%clk 0:02:25]} 8. Ne2 {[%clk 0:02:18]}  Bg7 {[%clk 0:02:22]} 9. O-O {[%clk 0:02:16]}  O-O {[%clk 0:02:04]} 10. c4 {[%clk 0:01:56]}  Nb6 {[%clk 0:01:57]} 11. c5 {[%clk 0:01:44]}  a6 {[%clk 0:01:39]} 12. Bd3 {[%clk 0:01:37]}  dxc5 {[%clk 0:01:38]} 13. dxc5 {[%clk 0:01:36]}  Nd7 {[%clk 0:01:37]} 14. Bc2 {[%clk 0:00:50]}  Nxc5 {[%clk 0:01:35]} 15. Nbc3 {[%clk 0:00:51]}  Bd7 {[%clk 0:01:34]} 16. Be3 {[%clk 0:00:49]}  Bc6 {[%clk 0:01:34]} 17. Qh3 {[%clk 0:00:49]}  Nd7 {[%clk 0:01:28]} 18. Rad1 {[%clk 0:00:49]}  Qa5 {[%clk 0:01:25]} 19. Nd4 {[%clk 0:00:48]}  Ne5 {[%clk 0:01:24]} 20. Bb3 {[%clk 0:00:39]}  Kh8 {[%clk 0:01:14]} 21. f4 {[%clk 0:00:34]}  Bd7 {[%clk 0:00:41]} 22. fxe5 {[%clk 0:00:32]}  Qxe5 {[%clk 0:00:41]} 23. Rfe1 {[%clk 0:00:25]}  Rad8 {[%clk 0:00:41]} 24. Qh4 {[%clk 0:00:21]}  Bf6 {[%clk 0:00:39]} 25. Qf2 {[%clk 0:00:20]}  Bg7 {[%clk 0:00:36]} 26. Nf3 {[%clk 0:00:12]}  Qb8 {[%clk 0:00:36]} 27. Bb6 {[%clk 0:00:12]}  Bc6 {[%clk 0:00:28]} 28. Bxd8 {[%clk 0:00:12]}  Rxd8 {[%clk 0:00:29]} 29. Rxd8+ {[%clk 0:00:12]}  Qxd8 {[%clk 0:00:30]} 30. Ne5 {[%clk 0:00:10]}  Be8 {[%clk 0:00:26]} 31. Nxf7+ {[%clk 0:00:10]}  Bxf7 {[%clk 0:00:27]} 32. Qxf7 {[%clk 0:00:10]}  h6 {[%clk 0:00:19]} 33. Qxe6 {[%clk 0:00:08]}  Qd4+ {[%clk 0:00:17]} 34. Kh1 {[%clk 0:00:08]}  Nf4 {[%clk 0:00:18]} 35. Qg8# {[%clk 0:00:08]} 1-0


[Site "https://www.chess.com"]

[Event "Titled Tuesday Blitz March 01 Early 2022"]
[White "Makhnev, Denis"]
[Black "Ter-Sahakyan, Samvel"]
[WhiteFideId "13707647"]
[BlackFideId "13302531"]
[WhiteElo "2491"]
[BlackElo "2592"]
[Result "1/2-1/2"]
[Round "03"]
[TimeControl "180+1"]
[Date "2022.03.01"]
[WhiteClock "0:00:45"]
[BlackClock "0:00:18"]

1. Nf3 {[%clk 0:03:00]}  d5 {[%clk 0:02:59]} 2. d4 {[%clk 0:02:59]}  Nf6 {[%clk 0:02:58]} 3. c4 {[%clk 0:02:58]}  e6 {[%clk 0:02:58]} 4. Nc3 {[%clk 0:02:58]}  Bb4 {[%clk 0:02:55]} 5. cxd5 {[%clk 0:02:56]}  exd5 {[%clk 0:02:55]} 6. Bg5 {[%clk 0:02:55]}  h6 {[%clk 0:02:54]} 7. Bxf6 {[%clk 0:02:55]}  Qxf6 {[%clk 0:02:55]} 8. Qa4+ {[%clk 0:02:54]}  Nc6 {[%clk 0:02:55]} 9. e3 {[%clk 0:02:55]}  O-O {[%clk 0:02:54]} 10. Bb5 {[%clk 0:02:52]}  Qg6 {[%clk 0:02:36]} 11. O-O {[%clk 0:02:15]}  Bxc3 {[%clk 0:02:31]} 12. bxc3 {[%clk 0:02:15]}  Bh3 {[%clk 0:02:30]} 13. Nh4 {[%clk 0:01:52]}  Qg5 {[%clk 0:02:25]} 14. Bxc6 {[%clk 0:01:52]}  bxc6 {[%clk 0:02:24]} 15. Qxc6 {[%clk 0:01:52]}  Rae8 {[%clk 0:01:07]} 16. Qxc7 {[%clk 0:01:39]}  Qxh4 {[%clk 0:00:44]} 17. gxh3 {[%clk 0:01:39]}  Qxh3 {[%clk 0:00:38]} 18. Qg3 {[%clk 0:01:35]}  Qc8 {[%clk 0:00:36]} 19. Rac1 {[%clk 0:01:28]}  Re6 {[%clk 0:00:37]} 20. Kh1 {[%clk 0:01:27]}  Rg6 {[%clk 0:00:29]} 21. Qf3 {[%clk 0:01:26]}  Rd8 {[%clk 0:00:27]} 22. Rg1 {[%clk 0:01:22]}  Rxg1+ {[%clk 0:00:26]} 23. Rxg1 {[%clk 0:01:22]}  Rd6 {[%clk 0:00:26]} 24. Qg3 {[%clk 0:01:09]}  Rg6 {[%clk 0:00:25]} 25. Qe5 {[%clk 0:01:05]}  Rxg1+ {[%clk 0:00:20]} 26. Kxg1 {[%clk 0:01:06]}  Qg4+ {[%clk 0:00:19]} 27. Qg3 {[%clk 0:01:04]}  Qc8 {[%clk 0:00:18]} 28. Qe5 {[%clk 0:00:45]}  Qg4+ {[%clk 0:00:18]} 29. Qg3 {[%clk 0:00:45]}  Qc8 {[%clk 0:00:18]} 30. Qe5 {[%clk 0:00:45]} 1/2-1/2


[Site "https://www.chess.com"]

[Event "Titled Tuesday Blitz March 01 Early 2022"]
[White "Manukyan, Sargis A."]
[Black "Bryakin, Mikhail"]
[WhiteFideId "13303970"]
[BlackFideId "4165314"]
[WhiteElo "2187"]
[BlackElo "2421"]
[Result "0-1"]
[Round "03"]
[TimeControl "180+1"]
[Date "2022.03.01"]
[WhiteClock "0:00:06"]
[BlackClock "0:02:05"]

1. d4 {[%clk 0:02:55]}  Nf6 {[%clk 0:02:59]} 2. e3 {[%clk 0:02:56]}  g6 {[%clk 0:02:59]} 3. Nf3 {[%clk 0:02:57]}  Bg7 {[%clk 0:02:59]} 4. Be2 {[%clk 0:02:58]}  O-O {[%clk 0:02:59]} 5. O-O {[%clk 0:02:58]}  c5 {[%clk 0:02:58]} 6. b3 {[%clk 0:02:58]}  cxd4 {[%clk 0:02:55]} 7. exd4 {[%clk 0:02:56]}  b6 {[%clk 0:02:56]} 8. Bb2 {[%clk 0:02:55]}  Bb7 {[%clk 0:02:56]} 9. Nbd2 {[%clk 0:02:54]}  d6 {[%clk 0:02:57]} 10. c4 {[%clk 0:02:51]}  Nbd7 {[%clk 0:02:58]} 11. Rc1 {[%clk 0:02:50]}  a5 {[%clk 0:02:56]} 12. Qc2 {[%clk 0:02:50]}  Nh5 {[%clk 0:02:54]} 13. Rfd1 {[%clk 0:02:40]}  Nf4 {[%clk 0:02:53]} 14. Bf1 {[%clk 0:02:41]}  Qc7 {[%clk 0:02:50]} 15. g3 {[%clk 0:02:40]}  Nh5 {[%clk 0:02:51]} 16. Bg2 {[%clk 0:02:39]}  Rfe8 {[%clk 0:02:51]} 17. Qb1 {[%clk 0:02:37]}  a4 {[%clk 0:02:39]} 18. Bc3 {[%clk 0:01:57]}  axb3 {[%clk 0:02:38]} 19. axb3 {[%clk 0:01:56]}  Ra7 {[%clk 0:02:35]} 20. Qb2 {[%clk 0:01:56]}  Rea8 {[%clk 0:02:35]} 21. Ra1 {[%clk 0:01:56]}  Rxa1 {[%clk 0:02:31]} 22. Rxa1 {[%clk 0:01:57]}  Qb8 {[%clk 0:02:32]} 23. Rxa8 {[%clk 0:01:49]}  Qxa8 {[%clk 0:02:33]} 24. Ne1 {[%clk 0:01:47]}  Bxg2 {[%clk 0:02:31]} 25. Nxg2 {[%clk 0:01:46]}  b5 {[%clk 0:02:32]} 26. Ne3 {[%clk 0:01:33]}  bxc4 {[%clk 0:02:31]} 27. bxc4 {[%clk 0:01:32]}  Nhf6 {[%clk 0:02:25]} 28. Qc2 {[%clk 0:01:01]}  h5 {[%clk 0:02:24]} 29. h4 {[%clk 0:00:59]}  Bh6 {[%clk 0:02:23]} 30. Nef1 {[%clk 0:00:38]}  Ng4 {[%clk 0:02:18]} 31. Qe4 {[%clk 0:00:35]}  Qxe4 {[%clk 0:02:17]} 32. Nxe4 {[%clk 0:00:35]}  Ngf6 {[%clk 0:02:17]} 33. Nxf6+ {[%clk 0:00:25]}  Nxf6 {[%clk 0:02:17]} 34. f3 {[%clk 0:00:25]}  Nd7 {[%clk 0:02:16]} 35. Kf2 {[%clk 0:00:25]}  Bg7 {[%clk 0:02:15]} 36. Ke3 {[%clk 0:00:23]}  Nb6 {[%clk 0:02:16]} 37. Kd3 {[%clk 0:00:23]}  Nd7 {[%clk 0:02:15]} 38. Ne3 {[%clk 0:00:20]}  Kf8 {[%clk 0:02:16]} 39. Nd5 {[%clk 0:00:17]}  Ke8 {[%clk 0:02:16]} 40. Bb4 {[%clk 0:00:16]}  Nf8 {[%clk 0:02:15]} 41. c5 {[%clk 0:00:17]}  Kd7 {[%clk 0:02:12]} 42. Kc4 {[%clk 0:00:16]}  Ne6 {[%clk 0:02:12]} 43. Nb6+ {[%clk 0:00:13]}  Kc7 {[%clk 0:02:12]} 44. cxd6+ {[%clk 0:00:08]}  Kxb6 {[%clk 0:02:02]} 45. dxe7 {[%clk 0:00:09]}  Nc7 {[%clk 0:02:03]} 46. d5 {[%clk 0:00:06]}  Ne8 {[%clk 0:02:04]} 47. d6 {[%clk 0:00:06]}  Kc6 {[%clk 0:02:04]} 48. Bc5 {[%clk 0:00:06]}  Be5 {[%clk 0:02:03]} 49. f4 {[%clk 0:00:04]}  Bxd6 {[%clk 0:02:03]} 50. Bxd6 {[%clk 0:00:04]}  Kxd6 {[%clk 0:02:04]} 51. Kd4 {[%clk 0:00:05]}  Kxe7 {[%clk 0:02:05]} 52. Ke5 {[%clk 0:00:06]}  Nd6 {[%clk 0:02:05]} 53. Kd5 {[%clk 0:00:06]}  Nf5 {[%clk 0:02:05]} 0-1


[Site "https://www.chess.com"]

[Event "Titled Tuesday Blitz March 01 Early 2022"]
[White "Martin Duque, Jesus"]
[Black "Zia, Tahsin Tajwar"]
[WhiteFideId "2208954"]
[BlackFideId "10211888"]
[WhiteElo "2243"]
[BlackElo "1800"]
[Result "1-0"]
[Round "03"]
[TimeControl "180+1"]
[Date "2022.03.01"]
[WhiteClock "0:00:38"]
[BlackClock "0:00:06"]

1. d4 {[%clk 0:02:58]}  c6 {[%clk 0:03:00]} 2. c4 {[%clk 0:02:57]}  d5 {[%clk 0:02:45]} 3. Nf3 {[%clk 0:02:57]}  Nf6 {[%clk 0:02:40]} 4. g3 {[%clk 0:02:57]}  g6 {[%clk 0:02:33]} 5. Bg2 {[%clk 0:02:55]}  Bg7 {[%clk 0:02:28]} 6. b3 {[%clk 0:02:55]}  O-O {[%clk 0:02:26]} 7. Bb2 {[%clk 0:02:56]}  dxc4 {[%clk 0:02:25]} 8. bxc4 {[%clk 0:02:56]}  c5 {[%clk 0:02:25]} 9. O-O {[%clk 0:02:54]}  Qb6 {[%clk 0:02:17]} 10. Qb3 {[%clk 0:02:52]}  Nbd7 {[%clk 0:02:10]} 11. d5 {[%clk 0:02:49]}  e6 {[%clk 0:01:50]} 12. dxe6 {[%clk 0:02:45]}  Qxe6 {[%clk 0:01:39]} 13. Nc3 {[%clk 0:02:45]}  Nb6 {[%clk 0:01:25]} 14. Nd2 {[%clk 0:02:18]}  Rd8 {[%clk 0:01:18]} 15. Rfd1 {[%clk 0:02:18]}  h5 {[%clk 0:01:02]} 16. Nb5 {[%clk 0:02:13]}  Qxe2 {[%clk 0:00:47]} 17. Bxf6 {[%clk 0:01:42]}  Bxf6 {[%clk 0:00:44]} 18. Ne4 {[%clk 0:01:42]}  Bxa1 {[%clk 0:00:28]} 19. Rxd8+ {[%clk 0:01:41]}  Kg7 {[%clk 0:00:27]} 20. Qb1 {[%clk 0:01:24]}  Be5 {[%clk 0:00:20]} 21. Re8 {[%clk 0:01:00]}  Be6 {[%clk 0:00:15]} 22. Rxe6 {[%clk 0:00:55]}  fxe6 {[%clk 0:00:14]} 23. Nxc5 {[%clk 0:00:56]}  Qxc4 {[%clk 0:00:07]} 24. Nd3 {[%clk 0:00:43]}  Bf6 {[%clk 0:00:06]} 25. Bf1 {[%clk 0:00:42]}  Rc8 {[%clk 0:00:06]} 26. Nf4 {[%clk 0:00:42]}  Qc1 {[%clk 0:00:06]} 27. Qxg6+ {[%clk 0:00:43]}  Kf8 {[%clk 0:00:05]} 28. Qxf6+ {[%clk 0:00:43]}  Ke8 {[%clk 0:00:06]} 29. Nd6+ {[%clk 0:00:42]}  Kd7 {[%clk 0:00:06]} 30. Qxe6+ {[%clk 0:00:42]}  Kc7 {[%clk 0:00:06]} 31. Nxc8 {[%clk 0:00:38]} 1-0


[Site "https://www.chess.com"]

[Event "Titled Tuesday Blitz March 01 Early 2022"]
[White "Marzaduri, Riccardo"]
[Black "Sargsyan, Anna M."]
[WhiteFideId "886084"]
[BlackFideId "13308130"]
[WhiteElo "2200"]
[BlackElo "2271"]
[Result "0-1"]
[Round "03"]
[TimeControl "180+1"]
[Date "2022.03.01"]
[WhiteClock "0:00:01"]
[BlackClock "0:01:26"]

1. e4 {[%clk 0:03:00]}  c6 {[%clk 0:02:58]} 2. d4 {[%clk 0:02:59]}  d5 {[%clk 0:02:59]} 3. Nc3 {[%clk 0:02:55]}  dxe4 {[%clk 0:02:59]} 4. Nxe4 {[%clk 0:02:55]}  Nd7 {[%clk 0:02:59]} 5. Ng5 {[%clk 0:02:53]}  Ngf6 {[%clk 0:02:58]} 6. Bc4 {[%clk 0:02:51]}  e6 {[%clk 0:02:58]} 7. Qe2 {[%clk 0:02:50]}  Nb6 {[%clk 0:02:58]} 8. Bd3 {[%clk 0:02:50]}  h6 {[%clk 0:02:51]} 9. N5f3 {[%clk 0:02:48]}  c5 {[%clk 0:02:49]} 10. dxc5 {[%clk 0:02:43]}  Bxc5 {[%clk 0:02:50]} 11. Ne5 {[%clk 0:02:43]}  O-O {[%clk 0:02:49]} 12. Ngf3 {[%clk 0:02:43]}  Qc7 {[%clk 0:02:49]} 13. O-O {[%clk 0:02:41]}  Nbd5 {[%clk 0:02:50]} 14. a3 {[%clk 0:02:28]}  b6 {[%clk 0:02:50]} 15. c4 {[%clk 0:02:27]}  Ne7 {[%clk 0:02:47]} 16. b4 {[%clk 0:02:26]}  Bd6 {[%clk 0:02:47]} 17. Bb2 {[%clk 0:02:26]}  Bb7 {[%clk 0:02:46]} 18. Rfe1 {[%clk 0:02:19]}  Rad8 {[%clk 0:02:42]} 19. Rac1 {[%clk 0:01:59]}  Qb8 {[%clk 0:02:37]} 20. c5 {[%clk 0:01:41]}  bxc5 {[%clk 0:02:37]} 21. bxc5 {[%clk 0:01:42]}  Bxe5 {[%clk 0:02:31]} 22. Bxe5 {[%clk 0:01:41]}  Qa8 {[%clk 0:02:25]} 23. Bxf6 {[%clk 0:01:13]}  gxf6 {[%clk 0:02:26]} 24. Nh4 {[%clk 0:01:12]}  Rd4 {[%clk 0:02:26]} 25. Rc4 {[%clk 0:01:03]}  Rfd8 {[%clk 0:02:24]} 26. Rxd4 {[%clk 0:01:02]}  Rxd4 {[%clk 0:02:24]} 27. g3 {[%clk 0:00:59]}  Qd8 {[%clk 0:02:21]} 28. Bb1 {[%clk 0:00:35]}  Qd5 {[%clk 0:02:19]} 29. f3 {[%clk 0:00:29]}  Qxc5 {[%clk 0:02:17]} 30. Qf2 {[%clk 0:00:27]}  Qc3 {[%clk 0:02:07]} 31. Rf1 {[%clk 0:00:14]}  Kg7 {[%clk 0:02:01]} 32. Ng2 {[%clk 0:00:11]}  Nd5 {[%clk 0:01:56]} 33. Be4 {[%clk 0:00:09]}  a5 {[%clk 0:01:47]} 34. Bxd5 {[%clk 0:00:08]}  Bxd5 {[%clk 0:01:47]} 35. Nf4 {[%clk 0:00:09]}  Bc4 {[%clk 0:01:48]} 36. Re1 {[%clk 0:00:04]}  Rd2 {[%clk 0:01:41]} 37. Qe3 {[%clk 0:00:03]}  Qxe3+ {[%clk 0:01:37]} 38. Rxe3 {[%clk 0:00:04]}  a4 {[%clk 0:01:33]} 39. Rc3 {[%clk 0:00:04]}  Bb3 {[%clk 0:01:30]} 40. Nd3 {[%clk 0:00:03]}  Ra2 {[%clk 0:01:27]} 41. Nc5 {[%clk 0:00:01]}  Rxa3 {[%clk 0:01:26]} 0-1


[Site "https://www.chess.com"]

[Event "Titled Tuesday Blitz March 01 Early 2022"]
[White "Matveeva, Olga"]
[Black "Dovbnia, Nikita"]
[WhiteFideId "24107018"]
[BlackFideId "54104599"]
[WhiteElo "2083"]
[BlackElo "2111"]
[Result "1-0"]
[Round "03"]
[TimeControl "180+1"]
[Date "2022.03.01"]
[WhiteClock "0:00:17"]
[BlackClock "0:00:03"]

1. d4 {[%clk 0:03:00]}  Nf6 {[%clk 0:02:57]} 2. c4 {[%clk 0:03:00]}  e6 {[%clk 0:02:58]} 3. g3 {[%clk 0:02:57]}  d5 {[%clk 0:02:56]} 4. Nf3 {[%clk 0:02:56]}  Nbd7 {[%clk 0:02:57]} 5. Bg2 {[%clk 0:02:54]}  c6 {[%clk 0:02:57]} 6. O-O {[%clk 0:02:53]}  dxc4 {[%clk 0:02:57]} 7. Qc2 {[%clk 0:02:45]}  b5 {[%clk 0:02:56]} 8. b3 {[%clk 0:02:42]}  Bd6 {[%clk 0:02:39]} 9. bxc4 {[%clk 0:02:40]}  O-O {[%clk 0:02:37]} 10. Nbd2 {[%clk 0:02:32]}  Bb7 {[%clk 0:02:36]} 11. c5 {[%clk 0:02:25]}  Be7 {[%clk 0:02:35]} 12. e4 {[%clk 0:02:25]}  Rc8 {[%clk 0:02:33]} 13. a4 {[%clk 0:02:21]}  e5 {[%clk 0:02:21]} 14. Bb2 {[%clk 0:01:52]}  exd4 {[%clk 0:02:20]} 15. Bxd4 {[%clk 0:01:51]}  bxa4 {[%clk 0:02:14]} 16. Rxa4 {[%clk 0:01:49]}  Qc7 {[%clk 0:02:11]} 17. Rxa7 {[%clk 0:01:46]}  Ra8 {[%clk 0:02:02]} 18. Rfa1 {[%clk 0:01:44]}  Rxa7 {[%clk 0:02:02]} 19. Rxa7 {[%clk 0:01:45]}  Qb8 {[%clk 0:02:02]} 20. Qa4 {[%clk 0:01:40]}  Nxc5 {[%clk 0:01:59]} 21. Qa2 {[%clk 0:01:18]}  Ncxe4 {[%clk 0:01:50]} 22. Be5 {[%clk 0:01:09]}  Qc8 {[%clk 0:01:46]} 23. Nc4 {[%clk 0:01:08]}  Bc5 {[%clk 0:01:42]} 24. Ra5 {[%clk 0:00:58]}  Bxf2+ {[%clk 0:01:17]} 25. Kh1 {[%clk 0:00:58]}  Qe6 {[%clk 0:01:09]} 26. Nd4 {[%clk 0:00:47]}  Qg4 {[%clk 0:00:59]} 27. Bf3 {[%clk 0:00:41]}  Qh3 {[%clk 0:00:57]} 28. Bg2 {[%clk 0:00:35]}  Nxg3+ {[%clk 0:00:57]} 29. Bxg3 {[%clk 0:00:32]}  Qxg2+ {[%clk 0:00:50]} 30. Kxg2 {[%clk 0:00:32]}  Bxg3 {[%clk 0:00:50]} 31. Kxg3 {[%clk 0:00:31]}  c5 {[%clk 0:00:50]} 32. Nf5 {[%clk 0:00:28]}  Ne4+ {[%clk 0:00:49]} 33. Kf4 {[%clk 0:00:26]}  g5+ {[%clk 0:00:49]} 34. Ke3 {[%clk 0:00:23]}  Re8 {[%clk 0:00:48]} 35. Kd3 {[%clk 0:00:22]}  Rd8+ {[%clk 0:00:40]} 36. Kc2 {[%clk 0:00:22]}  Nf6 {[%clk 0:00:24]} 37. Ra7 {[%clk 0:00:19]}  Be4+ {[%clk 0:00:24]} 38. Kc1 {[%clk 0:00:18]}  Bxf5 {[%clk 0:00:23]} 39. Ne5 {[%clk 0:00:18]}  Be6 {[%clk 0:00:14]} 40. Qg2 {[%clk 0:00:18]}  h6 {[%clk 0:00:11]} 41. h4 {[%clk 0:00:18]}  Bd5 {[%clk 0:00:11]} 42. Qg3 {[%clk 0:00:17]}  Ne4 {[%clk 0:00:10]} 43. Qg1 {[%clk 0:00:17]}  f6 {[%clk 0:00:09]} 44. hxg5 {[%clk 0:00:17]}  hxg5 {[%clk 0:00:06]} 45. Qh2 {[%clk 0:00:17]}  fxe5 {[%clk 0:00:03]} 46. Qh7+ {[%clk 0:00:16]}  Kf8 {[%clk 0:00:03]} 47. Qg7+ {[%clk 0:00:16]}  Ke8 {[%clk 0:00:03]} 48. Qe7# {[%clk 0:00:17]} 1-0


[Site "https://www.chess.com"]

[Event "Titled Tuesday Blitz March 01 Early 2022"]
[White "Mikhnenko, Alexander"]
[Black "Csonka, Balazs"]
[WhiteFideId "34143014"]
[BlackFideId "742910"]
[WhiteElo "2140"]
[BlackElo "2404"]
[Result "1/2-1/2"]
[Round "03"]
[TimeControl "180+1"]
[Date "2022.03.01"]
[WhiteClock "0:00:15"]
[BlackClock "0:00:05"]

1. e4 {[%clk 0:03:00]}  c5 {[%clk 0:02:58]} 2. Nf3 {[%clk 0:03:00]}  Nc6 {[%clk 0:02:56]} 3. d4 {[%clk 0:03:01]}  cxd4 {[%clk 0:02:57]} 4. Nxd4 {[%clk 0:03:01]}  Qb6 {[%clk 0:02:56]} 5. Nb3 {[%clk 0:03:00]}  Nf6 {[%clk 0:02:56]} 6. Nc3 {[%clk 0:03:00]}  e6 {[%clk 0:02:56]} 7. Be3 {[%clk 0:03:00]}  Qc7 {[%clk 0:02:56]} 8. f3 {[%clk 0:03:00]}  Bb4 {[%clk 0:02:54]} 9. Qd2 {[%clk 0:03:00]}  d5 {[%clk 0:02:52]} 10. exd5 {[%clk 0:02:56]}  Nxd5 {[%clk 0:02:51]} 11. Bc4 {[%clk 0:02:46]}  Bxc3 {[%clk 0:02:32]} 12. bxc3 {[%clk 0:02:45]}  Nxe3 {[%clk 0:02:31]} 13. Qxe3 {[%clk 0:02:45]}  b6 {[%clk 0:02:21]} 14. Bb5 {[%clk 0:02:43]}  Bb7 {[%clk 0:02:15]} 15. O-O {[%clk 0:02:39]}  O-O {[%clk 0:02:14]} 16. Rad1 {[%clk 0:02:33]}  Rfd8 {[%clk 0:02:10]} 17. Bd3 {[%clk 0:02:31]}  Rac8 {[%clk 0:01:49]} 18. Nd4 {[%clk 0:02:28]}  Ne5 {[%clk 0:01:22]} 19. Nb5 {[%clk 0:02:24]}  Qb8 {[%clk 0:01:10]} 20. Nxa7 {[%clk 0:02:11]}  Rc5 {[%clk 0:00:38]} 21. Be4 {[%clk 0:01:45]}  Rf8 {[%clk 0:00:23]} 22. Rb1 {[%clk 0:01:08]}  Bxe4 {[%clk 0:00:18]} 23. Qxc5 {[%clk 0:00:51]}  bxc5 {[%clk 0:00:17]} 24. Rxb8 {[%clk 0:00:51]}  Rxb8 {[%clk 0:00:16]} 25. fxe4 {[%clk 0:00:52]}  Rb7 {[%clk 0:00:15]} 26. Nc8 {[%clk 0:00:50]}  Rb2 {[%clk 0:00:10]} 27. Rd1 {[%clk 0:00:43]}  g5 {[%clk 0:00:08]} 28. a4 {[%clk 0:00:35]}  Ra2 {[%clk 0:00:07]} 29. Nb6 {[%clk 0:00:32]}  Kg7 {[%clk 0:00:07]} 30. h3 {[%clk 0:00:19]}  h5 {[%clk 0:00:07]} 31. Rc1 {[%clk 0:00:17]}  h4 {[%clk 0:00:05]} 32. Rb1 {[%clk 0:00:15]}  Rxc2 {[%clk 0:00:04]} 33. Ra1 {[%clk 0:00:14]}  Nd3 {[%clk 0:00:04]} 34. a5 {[%clk 0:00:14]}  Nf4 {[%clk 0:00:04]} 35. a6 {[%clk 0:00:13]}  Rxg2+ {[%clk 0:00:04]} 36. Kh1 {[%clk 0:00:14]}  Rg3 {[%clk 0:00:03]} 37. a7 {[%clk 0:00:14]}  Nxh3 {[%clk 0:00:02]} 38. a8=Q {[%clk 0:00:13]}  Nf2+ {[%clk 0:00:02]} 39. Kh2 {[%clk 0:00:14]}  Ng4+ {[%clk 0:00:03]} 40. Kh1 {[%clk 0:00:14]}  Nf2+ {[%clk 0:00:03]} 41. Kh2 {[%clk 0:00:14]}  Ng4+ {[%clk 0:00:04]} 42. Kh1 {[%clk 0:00:15]}  Nf2+ {[%clk 0:00:05]} 1/2-1/2


[Site "https://www.chess.com"]

[Event "Titled Tuesday Blitz March 01 Early 2022"]
[White "Mitusov, Semen"]
[Black "Zheenbekov, Nurgazy"]
[WhiteFideId "14151049"]
[BlackFideId "13800485"]
[WhiteElo "2246"]
[BlackElo "1959"]
[Result "1-0"]
[Round "03"]
[TimeControl "180+1"]
[Date "2022.03.01"]
[WhiteClock "0:00:56"]
[BlackClock "0:00:32"]

1. e4 {[%clk 0:03:00]}  e5 {[%clk 0:02:54]} 2. Nf3 {[%clk 0:03:00]}  Nc6 {[%clk 0:02:54]} 3. Bc4 {[%clk 0:02:59]}  Nf6 {[%clk 0:02:53]} 4. d3 {[%clk 0:02:59]}  Be7 {[%clk 0:02:53]} 5. O-O {[%clk 0:02:56]}  O-O {[%clk 0:02:53]} 6. Re1 {[%clk 0:02:56]}  d6 {[%clk 0:02:52]} 7. a4 {[%clk 0:02:55]}  h6 {[%clk 0:02:46]} 8. h3 {[%clk 0:02:54]}  Re8 {[%clk 0:02:46]} 9. c3 {[%clk 0:02:54]}  Bf8 {[%clk 0:02:46]} 10. Nbd2 {[%clk 0:02:42]}  Be6 {[%clk 0:02:46]} 11. a5 {[%clk 0:02:41]}  a6 {[%clk 0:02:38]} 12. Qb3 {[%clk 0:02:32]}  Rb8 {[%clk 0:02:35]} 13. Bxe6 {[%clk 0:02:30]}  Rxe6 {[%clk 0:02:35]} 14. Nc4 {[%clk 0:02:28]}  Re8 {[%clk 0:02:29]} 15. Ne3 {[%clk 0:02:23]}  Ne7 {[%clk 0:02:29]} 16. Nh4 {[%clk 0:02:18]}  d5 {[%clk 0:02:21]} 17. Nef5 {[%clk 0:02:14]}  c6 {[%clk 0:02:07]} 18. Be3 {[%clk 0:01:47]}  Kh7 {[%clk 0:01:41]} 19. Bb6 {[%clk 0:01:34]}  Qd7 {[%clk 0:01:38]} 20. Rad1 {[%clk 0:01:31]}  g6 {[%clk 0:01:34]} 21. Nxe7 {[%clk 0:01:30]}  Bxe7 {[%clk 0:01:34]} 22. Nf3 {[%clk 0:01:29]}  Bf8 {[%clk 0:01:20]} 23. exd5 {[%clk 0:01:27]}  Nxd5 {[%clk 0:01:17]} 24. Nxe5 {[%clk 0:01:26]}  Qf5 {[%clk 0:01:15]} 25. Nf3 {[%clk 0:01:07]}  Nf4 {[%clk 0:00:53]} 26. Nd4 {[%clk 0:01:02]}  Qg5 {[%clk 0:00:46]} 27. Qxf7+ {[%clk 0:01:02]}  Bg7 {[%clk 0:00:46]} 28. g3 {[%clk 0:01:01]}  Rf8 {[%clk 0:00:32]} 29. Qd7 {[%clk 0:00:56]} 1-0


[Site "https://www.chess.com"]